bitfinex/quotes_SOLUSD_20250609
["timestamp","ask_amount","ask_price","bid_price","bid_amount"]
[1749497686876,6.42260757,155.7,155.69,2.74302556]
[1749497687185,19.08951167,155.7,155.69,2.74302556]
[1749497687390,6.42260757,155.7,155.69,2.74302556]
[1749497687591,19.08951167,155.7,155.69,2.74302556]
[1749497688165,6.42260757,155.7,155.69,2.74302556]
[1749497688360,19.08951167,155.7,155.69,2.74302556]
[1749497689272,26.23369593,155.7,155.69,2.74302556]
[1749497690665,6.42260757,155.7,155.69,2.74302556]
[1749497690865,26.23369593,155.7,155.69,2.74302556]
[1749497696796,6.42260757,155.7,155.69,2.74302556]
[1749497696970,26.23369593,155.7,155.69,2.74302556]
[1749497697285,30.99434382,155.7,155.69,2.74302556]
[1749497701381,26.23369593,155.7,155.69,2.74302556]
[1749497701696,30.99434382,155.7,155.69,2.74302556]
[1749497702783,11.18325546,155.7,155.69,2.74302556]
[1749497702979,6.42260757,155.7,155.69,2.74302556]
[1749497703183,26.23369593,155.7,155.69,2.74302556]
[1749497711393,19.09977094,155.7,155.69,2.74302556]
[1749497717209,6.42260757,155.7,155.69,2.74302556]
[1749497718908,6.4221951,155.71,155.69,15.42018893]
[1749497719095,6.4221951,155.71,155.7,39.58]
[1749497721107,35.15363187,155.72,155.7,39.58]
[1749497721791,35.15363187,155.72,155.7,129.48]
[1749497724386,12.67716337,155.71,155.7,129.48]
[1749497724787,17.4399859,155.71,155.7,129.48]
[1749497725002,12.67716337,155.71,155.7,129.48]
[1749497725512,4.76282253,155.71,155.7,129.48]
[1749497725812,39.9164544,155.72,155.7,129.48]
[1749497726215,27.23929103,155.72,155.7,129.48]
[1749497726720,22.4764685,155.72,155.7,142.15716337]
[1749497727017,22.4764685,155.72,155.7,129.48]
[1749497727810,6.42178268,155.72,155.7,142.15716337]
[1749497728806,6.42178268,155.72,155.7,129.48]
[1749497733998,6.42178268,155.72,155.7,142.15716337]
[1749497734223,6.42178268,155.72,155.71,12.67716337]
[1749497735426,6.420958,155.74,155.71,12.67716337]
[1749497735617,6.420958,155.74,155.72,39.56]
[1749497737406,19.09812137,155.74,155.72,39.56]
[1749497738121,6.420958,155.74,155.72,39.56]
[1749497739431,6.420958,155.74,155.72,129.46]
[1749497741828,19.09812137,155.74,155.72,129.46]
[1749497744120,6.420958,155.74,155.72,129.46]
[1749497746145,12.67716337,155.73,155.72,129.46]
[1749497746314,12.67716337,155.73,155.72,89.9]
[1749497746315,17.43851105,155.73,155.72,89.9]
[1749497746935,12.67716337,155.73,155.72,89.9]
[1749497747336,23.85946905,155.74,155.72,89.9]
[1749497747737,12.67716337,155.73,155.72,89.9]
[1749497748244,19.09853369,155.73,155.72,89.9]
[1749497748629,6.42137032,155.73,155.72,89.9]
[1749497748838,19.09853369,155.73,155.72,89.9]
[1749497750436,23.85988137,155.73,155.72,89.9]
[1749497750627,19.09853369,155.73,155.72,89.9]
[1749497750850,23.85988137,155.73,155.72,89.9]
[1749497751028,19.09853369,155.73,155.72,89.9]
[1749497751232,23.85988137,155.73,155.71,129.46]
[1749497751527,19.09853369,155.73,155.71,129.46]
[1749497751720,23.85988137,155.73,155.71,129.46]
[1749497751922,19.09853369,155.73,155.71,129.46]
[1749497752337,23.85988137,155.73,155.71,129.46]
[1749497752545,19.09853369,155.73,155.71,129.46]
[1749497752841,23.85988137,155.73,155.71,129.46]
[1749497753034,6.42137032,155.73,155.71,129.46]
[1749497753241,11.182718,155.73,155.71,129.46]
[1749497753544,6.42137032,155.73,155.71,129.46]
[1749497754221,19.09853369,155.73,155.71,129.46]
[1749497754617,23.85994859,155.73,155.71,129.46]
[1749497754839,19.09853369,155.73,155.71,129.46]
[1749497755116,12.67716337,155.72,155.71,129.46]
[1749497755320,17.43857827,155.72,155.71,129.46]
[1749497756662,23.86036095,155.72,155.71,129.46]
[1749497757254,19.09894605,155.72,155.71,39.56]
[1749497757446,23.86036095,155.72,155.71,39.56]
[1749497757955,19.09894605,155.72,155.71,39.56]
[1749497758330,23.86036095,155.72,155.71,39.56]
[1749497759146,6.42178268,155.72,155.71,39.56]
[1749497759351,11.18389689,155.72,155.69,92.64302556]
[1749497759535,11.18389689,155.72,155.7,39.54]
[1749497762056,6.42178268,155.72,155.7,39.54]
[1749497762452,19.09894605,155.72,155.7,39.54]
[1749497762757,4.76200841,155.71,155.7,39.54]
[1749497762964,17.43917178,155.71,155.7,39.54]
[1749497763343,23.86136688,155.71,155.7,39.54]
[1749497763549,19.09935847,155.71,155.7,39.54]
[1749497763754,23.86136688,155.71,155.69,132.18302556]
[1749497763940,19.09935847,155.71,155.69,132.18302556]
[1749497764140,23.86136688,155.71,155.69,132.18302556]
[1749497764339,19.09935847,155.71,155.69,132.18302556]
[1749497764540,23.86136688,155.71,155.69,132.18302556]
[1749497764840,19.09935847,155.71,155.69,132.18302556]
[1749497765042,11.18420351,155.71,155.69,132.18302556]
[1749497765464,11.18420351,155.71,155.69,92.64302556]
[1749497765755,11.18420351,155.71,155.7,39.54]
[1749497765972,6.4221951,155.71,155.7,39.54]
[1749497768968,6.42178268,155.72,155.7,39.54]
[1749497769141,6.42178268,155.72,155.7,129.44]
[1749497769645,11.18234323,155.72,155.7,129.44]
[1749497769859,6.42178268,155.72,155.7,129.44]
[1749497770366,11.1824159,155.72,155.7,129.44]
[1749497770567,12.67716337,155.73,155.7,129.44]
[1749497770773,4.76087434,155.72,155.7,129.44]
[1749497770956,12.67716337,155.73,155.7,129.44]
[1749497771156,4.76087592,155.72,155.7,129.44]
[1749497771360,12.67716337,155.73,155.7,129.44]
[1749497771564,4.76079492,155.72,155.7,129.44]
[1749497771763,6.42178268,155.72,155.7,129.44]
[1749497771968,11.18250111,155.72,155.7,129.44]
[1749497774655,11.01310497,155.72,155.7,129.44]
[1749497775560,22.47504424,155.73,155.7,129.44]
[1749497778873,22.47504424,155.73,155.7,142.11716337]
[1749497780473,22.47504424,155.73,155.71,12.67716337]
[1749497780653,22.47504424,155.73,155.72,39.54]
[1749497780854,22.47504424,155.73,155.72,129.44]
[1749497781664,16.05367392,155.73,155.72,129.44]
[1749497785683,20.81750713,155.73,155.72,129.44]
[1749497785983,27.23887745,155.73,155.72,129.44]
[1749497786599,39.91604082,155.73,155.72,129.44]
[1749497786762,27.23887745,155.73,155.7,39.52]
[1749497787083,17.44099658,155.72,155.7,39.52]
[1749497787655,12.67716337,155.72,155.7,39.52]
[1749497787854,19.09935847,155.71,155.7,39.52]
[1749497789574,11.18624392,155.71,155.7,39.52]
[1749497789885,6.4221951,155.71,155.7,39.52]
[1749497792667,6.4221951,155.71,155.7,129.42]
[1749497795168,6.4221951,155.71,155.7,142.09716337]
[1749497796770,22.47504424,155.73,155.7,142.09716337]
[1749497796973,35.15220761,155.73,155.7,129.42]
[1749497797768,22.47504424,155.73,155.7,129.42]
[1749497798192,35.15220761,155.73,155.7,129.42]
[1749497799665,22.47504424,155.73,155.71,12.67716337]
[1749497799996,22.47504424,155.73,155.72,39.52]
[1749497800170,27.24134247,155.73,155.72,39.52]
[1749497800786,39.91850584,155.73,155.72,39.52]
[1749497801188,27.24134247,155.73,155.72,39.52]
[1749497801385,39.91850584,155.73,155.72,39.52]
[1749497808394,27.24134247,155.73,155.72,39.52]
[1749497810392,27.24134247,155.73,155.72,129.42]
[1749497813672,39.91850584,155.73,155.72,129.42]
[1749497816475,39.91850584,155.73,155.72,39.52]
[1749497818318,27.24134247,155.73,155.72,39.52]
[1749497822296,27.24134247,155.73,155.72,129.42]
[1749497823300,11.18766855,155.73,155.72,129.42]
[1749497823503,11.18766855,155.73,155.72,142.09716337]
[1749497823706,21.99900629,155.77,155.72,142.09716337]
[1749497823707,6.42111229,155.74,155.72,142.09716337]
[1749497823885,6.42111229,155.74,155.73,12.67716337]
[1749497824293,11.19032175,155.74,155.72,129.42]
[1749497824482,6.42111229,155.74,155.72,129.42]
[1749497825524,22.4719101,155.75,155.72,129.42]
[1749497825692,4.76808974,155.74,155.72,129.42]
[1749497826013,22.4719101,155.75,155.72,129.42]
[1749497826202,4.76796058,155.74,155.72,129.42]
[1749497826401,22.4719101,155.75,155.72,129.42]
[1749497826606,4.76766977,155.74,155.72,129.42]
[1749497826801,22.4719101,155.75,155.72,129.42]
[1749497826996,4.7673781,155.74,155.72,129.42]
[1749497827196,22.4719101,155.75,155.72,129.42]
[1749497827392,4.76741557,155.74,155.72,129.42]
[1749497827592,22.4719101,155.75,155.73,39.5]
[1749497827815,4.76709197,155.74,155.73,39.5]
[1749497828222,11.18841276,155.76,155.73,135.8657]
[1749497828386,4.76756734,155.75,155.73,135.8657]
[1749497828727,22.47063794,155.76,155.73,135.8657]
[1749497828891,4.7672248,155.75,155.73,135.8657]
[1749497829486,4.76716924,155.75,155.73,135.8657]
[1749497829805,6.420958,155.74,155.73,135.8657]
[1749497830789,6.420958,155.74,155.73,148.54286337]
[1749497833302,6.420958,155.74,155.73,135.8657]
[1749497834906,6.4206834,155.75,155.73,148.54286337]
[1749497841501,6.4206834,155.75,155.73,135.8657]
[1749497841721,6.4206834,155.75,155.73,148.54286337]
[1749497844228,6.4206834,155.75,155.73,148.54286337]
[1749497846827,6.4206834,155.75,155.74,39.46]
[1749497851932,6.4206834,155.75,155.74,129.36]
[1749497858742,23.86441882,155.75,155.74,129.36]
[1749497858918,39.91578318,155.75,155.7,89.9]
[1749497859237,35.14921113,155.75,155.71,39.46]
[1749497859548,4.7636205,155.74,155.71,39.46]
[1749497860137,4.76442786,155.74,155.71,39.46]
[1749497861745,6.42137032,155.73,155.71,39.46]
[1749497863651,6.42137032,155.73,155.71,129.36]
[1749497864260,6.42113864,155.74,155.72,12.67716337]
[1749497865461,6.42113864,155.74,155.71,142.03716337]
[1749497871660,35.15069702,155.74,155.71,129.36]
[1749497871852,4.77016092,155.73,155.71,129.36]
[1749497872055,35.15069702,155.74,155.71,129.36]
[1749497872256,4.77035792,155.73,155.71,129.36]
[1749497872558,35.15069702,155.74,155.71,129.36]
[1749497872759,4.77133403,155.73,155.71,129.36]
[1749497872968,6.42178268,155.72,155.71,129.36]
[1749497874446,4.77088744,155.73,155.71,129.36]
[1749497874661,35.15051638,155.74,155.71,129.36]
[1749497874869,22.47335301,155.74,155.71,129.36]
[1749497875977,4.77037058,155.73,155.71,129.36]
[1749497876349,22.47335301,155.74,155.71,129.36]
[1749497876549,6.42178268,155.72,155.71,129.36]
[1749497879575,19.09894605,155.72,155.71,89.9]
[1749497879763,23.86817427,155.72,155.71,129.34]
[1749497880360,19.09894605,155.72,155.71,39.44]
[1749497880677,23.86817427,155.72,155.71,39.44]
[1749497881676,19.09894605,155.72,155.71,39.44]
[1749497881846,23.86817427,155.72,155.71,39.44]
[1749497882051,19.09894605,155.72,155.71,39.44]
[1749497882256,23.86817427,155.72,155.71,39.44]
[1749497882463,19.09894605,155.72,155.71,39.44]
[1749497882654,23.86817427,155.72,155.71,39.44]
[1749497882855,19.09894605,155.72,155.71,39.44]
[1749497883069,23.86817427,155.72,155.71,39.44]
[1749497883378,19.09894605,155.72,155.71,39.44]
[1749497883679,23.86817427,155.72,155.71,39.44]
[1749497883873,19.09894605,155.72,155.71,39.44]
[1749497884064,23.86817427,155.72,155.71,39.44]
[1749497884259,6.42178268,155.72,155.71,39.44]
[1749497884462,23.86817427,155.72,155.71,39.44]
[1749497884661,19.09894605,155.72,155.71,39.44]
[1749497884874,23.86817427,155.72,155.71,39.44]
[1749497885074,19.09894605,155.72,155.71,39.44]
[1749497885274,23.86817427,155.72,155.71,39.44]
[1749497885480,19.09894605,155.72,155.71,39.44]
[1749497885665,23.86817427,155.72,155.71,39.44]
[1749497885864,19.09894605,155.72,155.71,39.44]
[1749497886064,23.86817427,155.72,155.71,39.44]
[1749497886377,19.09894605,155.72,155.71,39.44]
[1749497886578,11.1910109,155.72,155.71,39.44]
[1749497887679,23.86817427,155.72,155.71,39.44]
[1749497887859,19.09894605,155.72,155.71,39.44]
[1749497888059,23.86817427,155.72,155.71,39.44]
[1749497888259,19.09894605,155.72,155.71,39.44]
[1749497888667,23.86817427,155.72,155.71,39.44]
[1749497888870,19.09894605,155.72,155.71,39.44]
[1749497889086,23.86817427,155.72,155.71,39.44]
[1749497889268,35.15340276,155.72,155.69,92.64302556]
[1749497889467,12.67716337,155.7,155.69,92.64302556]
[1749497889672,23.86899916,155.7,155.69,92.64302556]
[1749497890472,19.09977094,155.7,155.69,92.64302556]
[1749497890671,23.86899916,155.7,155.69,92.64302556]
[1749497890874,19.09977094,155.7,155.69,92.64302556]
[1749497891072,23.86899916,155.7,155.69,92.64302556]
[1749497891464,19.09977094,155.7,155.69,92.64302556]
[1749497891661,23.86899916,155.7,155.69,92.64302556]
[1749497891864,19.09977094,155.7,155.69,92.64302556]
[1749497892179,23.86899916,155.7,155.69,92.64302556]
[1749497892372,19.09977094,155.7,155.69,92.64302556]
[1749497892574,23.86899916,155.7,155.69,92.64302556]
[1749497892775,19.09977094,155.7,155.69,92.64302556]
[1749497892973,23.86899916,155.7,155.69,92.64302556]
[1749497893169,19.09977094,155.7,155.69,92.64302556]
[1749497893471,19.09977094,155.7,155.69,2.74302556]
[1749497895594,19.24193251,155.7,155.69,2.74302556]
[1749497901088,50.71090631,155.7,155.69,2.74302556]
[1749497901266,12.67716337,155.64,155.63,39.44]
[1749497901468,12.67716337,155.64,155.63,129.34]
[1749497902090,26.0,155.65,155.6,89.9]
[1749497902278,12.67716337,155.61,155.58,39.44]
[1749497902475,6.42756138,155.58,155.57,89.9]
[1749497902796,35.1736282,155.58,155.53,89.9]
[1749497902969,12.67716337,155.54,155.5,100.16]
[1749497903162,12.67716337,155.54,155.51,39.44]
[1749497903776,12.67716337,155.54,155.51,89.9]
[1749497904107,12.67716337,155.53,155.5,89.9]
[1749497904306,12.67716337,155.52,155.5,129.34]
[1749497904505,19.107618,155.51,155.46,89.9]
[1749497904671,12.67716337,155.5,155.48,39.44]
[1749497904871,12.67716337,155.5,155.46,12.67716337]
[1749497905094,12.67716337,155.5,155.47,39.44]
[1749497905294,19.85868376,155.49,155.48,39.44]
[1749497905774,22.50659121,155.51,155.48,39.44]
[1749497905975,19.85868376,155.5,155.48,38.94]
[1749497906571,19.85868376,155.51,155.48,39.44]
[1749497907188,19.85868376,155.5,155.48,39.44]
[1749497907870,22.50369703,155.53,155.48,39.44]
[1749497908079,19.85868376,155.5,155.48,39.44]
[1749497909076,26.28979359,155.5,155.48,39.44]
[1749497912394,6.42880102,155.55,155.49,19.85868376]
[1749497912576,19.85868376,155.53,155.49,109.75868376]
[1749497913288,22.50080359,155.55,155.49,89.9]
[1749497913605,22.50080359,155.55,155.49,109.75868376]
[1749497913788,19.85868376,155.53,155.49,109.75868376]
[1749497915679,6.43004115,155.52,155.49,109.75868376]
[1749497917281,26.28872491,155.52,155.49,89.9]
[1749497918702,19.85868376,155.51,155.49,89.9]
[1749497921312,6.43086816,155.5,155.49,89.9]
[1749497924613,6.43045463,155.51,155.49,89.9]
[1749497927597,6.43045463,155.51,155.49,109.75868376]
[1749497927801,6.43045463,155.51,155.49,89.9]
[1749497932618,22.50080359,155.55,155.5,19.85868376]
[1749497932810,22.50080359,155.55,155.52,19.85868376]
[1749497933216,22.50080359,155.55,155.53,19.85868376]
[1749497933413,22.50080359,155.55,155.54,39.46]
[1749497934621,16.07200257,155.55,155.54,39.46]
[1749497936318,22.50080359,155.55,155.54,39.46]
[1749497938717,6.42673521,155.6,155.54,59.31868376]
[1749497938921,45.85868376,155.59,155.54,59.31868376]
[1749497939219,6.42673521,155.6,155.57,19.85868376]
[1749497939422,6.42673521,155.6,155.58,59.31868376]
[1749497939599,6.42673521,155.6,155.59,39.46]
[1749497940299,6.42632221,155.61,155.59,39.46]
[1749497946323,11.15994962,155.61,155.59,39.46]
[1749497947332,11.15994962,155.61,155.6,38.50833262]
[1749497947333,4.73362741,155.61,155.6,38.50833262]
[1749497947503,24.59231117,155.68,155.62,6.4806]
[1749497947711,6.42343268,155.68,155.64,19.85868376]
[1749497948010,19.85868376,155.67,155.63,59.29868376]
[1749497948713,6.42425799,155.66,155.63,59.29868376]
[1749497950319,6.42425799,155.66,155.64,19.85868376]
[1749497950499,35.91726546,155.68,155.64,19.85868376]
[1749497950705,6.42384531,155.67,155.63,59.29868376]
[1749497951903,22.48345859,155.67,155.63,59.29868376]
[1749497952534,22.48345859,155.67,155.63,149.19868376]
[1749497952915,6.42384531,155.67,155.63,129.34]
[1749497953132,6.42384531,155.67,155.66,19.85868376]
[1749497953307,6.42384531,155.67,155.66,129.32]
[1749497954925,19.85868376,155.67,155.66,129.32]
[1749497956816,26.28252907,155.67,155.66,129.32]
[1749497958338,26.28252907,155.67,155.66,39.42]
[1749497959120,42.34214235,155.67,155.62,128.07798376]
[1749497959320,42.34214235,155.67,155.63,39.4]
[1749497959942,19.85868376,155.65,155.63,39.4]
[1749497961130,6.42508352,155.64,155.63,39.4]
[1749497964342,6.42467073,155.65,155.63,129.3]
[1749497968848,26.28335449,155.65,155.63,129.3]
[1749497973048,26.28335449,155.65,155.63,89.9]
[1749497973261,26.28335449,155.65,155.64,39.4]
[1749497975032,6.42467073,155.65,155.64,39.4]
[1749497975728,26.28335449,155.65,155.64,39.4]
[1749497976146,26.28335449,155.65,155.64,129.3]
[1749497980177,26.28335449,155.65,155.64,89.9]
[1749497980463,26.28335449,155.65,155.56,146.7]
[1749497980464,74.46838499,155.65,155.56,146.7]
[1749497980674,19.85868376,155.58,155.56,89.9]
[1749497980880,19.85868376,155.58,155.57,39.4]
[1749497981058,4.73096327,155.64,155.57,59.25868376]
[1749497981248,19.85868376,155.6,155.57,129.3]
[1749497981450,4.73096327,155.64,155.57,129.3]
[1749497981451,19.85868376,155.59,155.57,129.3]
[1749497982174,19.85868376,155.6,155.57,129.3]
[1749497982485,6.42714827,155.59,155.57,129.3]
[1749497983670,26.28583203,155.59,155.57,129.3]
[1749497984668,6.42714827,155.59,155.57,129.3]
[1749497988260,6.42714827,155.59,155.58,39.4]
[1749497988666,26.28583203,155.59,155.58,39.4]
[1749497990983,26.28583203,155.59,155.58,129.3]
[1749497995271,19.85868376,155.6,155.58,129.3]
[1749497997382,6.42714827,155.59,155.58,129.3]
[1749497999154,19.85868376,155.59,155.58,89.9]
[1749497999667,16.06606485,155.61,155.58,89.9]
[1749497999881,16.06606485,155.61,155.59,39.4]
[1749498000464,35.92474861,155.61,155.59,39.4]
[1749498001455,42.35107082,155.61,155.59,39.4]
[1749498002792,42.35107082,155.61,155.59,129.3]
[1749498009393,35.18187372,155.61,155.59,129.3]
[1749498010201,12.68948666,155.6,155.59,129.3]
[1749498010399,12.68948666,155.6,155.59,89.9]
[1749498010703,12.68948666,155.6,155.59,129.28]
[1749498011084,17.42044993,155.6,155.59,89.9]
[1749498011386,30.99589585,155.6,155.59,89.9]
[1749498012302,50.83409322,155.6,155.59,89.9]
[1749498013621,30.99589585,155.6,155.59,89.9]
[1749498014704,30.99589585,155.6,155.58,129.28]
[1749498015001,24.56916064,155.59,155.58,129.28]
[1749498015705,30.99630891,155.59,155.58,129.28]
[1749498015902,26.26534564,155.59,155.58,129.28]
[1749498016116,30.99630891,155.59,155.58,129.28]
[1749498016282,26.26534564,155.59,155.58,129.28]
[1749498016480,30.99630891,155.59,155.58,129.28]
[1749498016680,26.26534564,155.59,155.58,129.28]
[1749498016878,30.99630891,155.59,155.58,129.28]
[1749498017078,26.26534564,155.59,155.58,129.28]
[1749498017280,30.99630891,155.59,155.58,129.28]
[1749498017475,26.26534564,155.59,155.58,129.28]
[1749498017676,30.99630891,155.59,155.58,89.9]
[1749498017978,26.26534564,155.59,155.58,129.28]
[1749498018175,30.99630891,155.59,155.58,129.28]
[1749498018392,26.26534564,155.59,155.58,129.28]
[1749498018597,30.99630891,155.59,155.58,129.28]
[1749498018804,26.26534564,155.59,155.58,129.28]
[1749498019006,30.99630891,155.59,155.58,129.28]
[1749498019298,26.26534564,155.59,155.58,129.28]
[1749498019485,30.99630891,155.59,155.58,129.28]
[1749498019685,26.26534564,155.59,155.58,129.28]
[1749498019884,30.99630891,155.59,155.58,129.28]
[1749498020097,26.26534564,155.59,155.58,129.28]
[1749498020401,30.99630891,155.59,155.58,129.28]
[1749498021981,30.99630891,155.59,155.58,89.9]
[1749498022180,30.99630891,155.59,155.58,129.28]
[1749498027010,11.15811154,155.59,155.58,129.28]
[1749498027309,30.99630891,155.59,155.58,129.28]
[1749498029803,79.19992096,155.59,155.54,89.9]
[1749498030004,19.83819737,155.55,155.54,129.28]
[1749498030189,19.83819737,155.55,155.54,89.9]
[1749498030395,24.56916064,155.56,155.54,129.28]
[1749498030597,19.83819737,155.56,155.54,129.28]
[1749498031004,6.42880102,155.55,155.54,129.28]
[1749498032319,26.26699839,155.55,155.54,129.28]
[1749498033412,19.12875671,155.55,155.54,129.28]
[1749498034922,19.12875671,155.55,155.54,89.9]
[1749498035116,67.34476442,155.55,155.49,100.12]
[1749498035307,12.69995569,155.53,155.5,39.38]
[1749498035510,54.64480873,155.55,155.5,39.38]
[1749498035721,22.50080359,155.55,155.52,12.69995569]
[1749498035901,22.50080359,155.55,155.53,39.38]
[1749498036225,22.50080359,155.55,155.53,129.28]
[1749498038307,35.20075928,155.55,155.53,129.28]
[1749498038904,22.50080359,155.55,155.53,129.28]
[1749498039898,6.42880102,155.55,155.54,6.1479]
[1749498040703,6.42880102,155.55,155.54,18.84785569]
[1749498041725,22.49791641,155.57,155.54,18.84785569]
[1749498041904,22.49791641,155.57,155.55,39.38]
[1749498044331,22.49791641,155.57,155.55,129.28]
[1749498045923,4.7505212,155.56,155.5,52.07995569]
[1749498046112,12.69995569,155.55,155.5,52.07995569]
[1749498047135,12.69995569,155.55,155.51,12.69995569]
[1749498047426,6.42921435,155.54,155.51,12.69995569]
[1749498047632,6.42921435,155.54,155.52,39.38]
[1749498049510,19.12917004,155.54,155.52,39.38]
[1749498052137,6.42921435,155.54,155.52,39.38]
[1749498052924,12.69995569,155.53,155.51,39.38]
[1749498053140,12.69995569,155.52,155.51,39.38]
[1749498053317,19.12999684,155.52,155.51,39.38]
[1749498056248,19.12999684,155.52,155.51,129.28]
[1749498056830,19.12958341,155.53,155.51,129.28]
[1749498059256,26.27857945,155.53,155.51,129.28]
[1749498062764,6.42962772,155.53,155.51,149.12895173]
[1749498063147,6.42962772,155.53,155.51,129.28]
[1749498064050,22.50225022,155.54,155.51,129.28]
[1749498065748,42.35120195,155.54,155.51,129.28]
[1749498066260,27.2562023,155.54,155.52,19.84895173]
[1749498066431,6.42921435,155.54,155.53,39.38]
[1749498067540,6.42880102,155.55,155.53,39.38]
[1749498067950,6.42880102,155.55,155.53,129.28]
[1749498068558,11.1827531,155.55,155.53,129.28]
[1749498069354,6.42880102,155.55,155.53,129.28]
[1749498069565,11.18458165,155.55,155.53,129.28]
[1749498070054,6.42880102,155.55,155.54,19.84895173]
[1749498070563,6.42880102,155.55,155.54,109.74895173]
[1749498070950,6.42880102,155.55,155.54,89.9]
[1749498071160,22.499359,155.56,155.54,89.9]
[1749498071357,22.499359,155.56,155.55,39.38]
[1749498073436,16.07097124,155.56,155.55,39.38]
[1749498073861,16.07097124,155.56,155.55,129.28]
[1749498074444,6.42797454,155.57,155.55,149.12895173]
[1749498074648,6.42797454,155.57,155.56,19.84895173]
[1749498074852,6.42797454,155.57,155.56,109.74895173]
[1749498075362,6.42756138,155.58,155.56,109.74895173]
[1749498075555,6.42756138,155.58,155.57,59.22895173]
[1749498075758,6.42756138,155.58,155.57,149.12895173]
[1749498077556,4.75835092,155.59,155.57,149.12895173]
[1749498079558,6.42756138,155.58,155.57,149.12895173]
[1749498081473,6.42756138,155.58,155.57,141.96979007]
[1749498083376,6.42714827,155.59,155.57,141.96979007]
[1749498085662,6.42673521,155.6,155.57,141.96979007]
[1749498089089,6.42633639,155.61,155.59,12.68979007]
[1749498089265,4.75835092,155.62,155.57,129.28]
[1749498089266,4.75835092,155.63,155.6,141.94979007]
[1749498089466,6.42609044,155.62,155.61,52.04979007]
[1749498090379,22.48863263,155.64,155.61,52.04979007]
[1749498091278,22.48863263,155.64,155.61,59.17797556]
[1749498094476,19.81797556,155.62,155.6,89.9]
[1749498094679,42.3101033,155.61,155.57,19.81797556]
[1749498094981,42.3101033,155.61,155.58,39.34]
[1749498095363,22.49212774,155.61,155.58,19.81797556]
[1749498095569,22.49212774,155.61,155.59,39.34]
[1749498097380,42.3101033,155.61,155.59,39.34]
[1749498097959,42.3101033,155.61,155.59,129.24]
[1749498099093,19.81797556,155.6,155.59,89.9]
[1749498099263,19.81797556,155.6,155.59,129.24]
[1749498099576,22.49212774,155.61,155.59,149.05797556]
[1749498099774,22.49212774,155.61,155.59,129.24]
[1749498100497,6.42632221,155.61,155.59,149.05797556]
[1749498100991,6.42590926,155.62,155.59,149.05797556]
[1749498103766,42.30865798,155.62,155.59,129.24]
[1749498107866,19.81797556,155.61,155.59,129.24]
[1749498108071,19.81797556,155.6,155.59,129.24]
[1749498108764,24.57632648,155.61,155.59,129.24]
[1749498109596,6.42673521,155.6,155.59,129.24]
[1749498110569,31.00306169,155.6,155.59,129.24]
[1749498110770,26.24471077,155.6,155.59,129.24]
[1749498111070,31.00306169,155.6,155.59,129.24]
[1749498111270,26.24471077,155.6,155.59,129.24]
[1749498111481,31.00306169,155.6,155.59,129.24]
[1749498112274,31.00306169,155.6,155.59,89.9]
[1749498112474,31.00306169,155.6,155.59,129.24]
[1749498113371,23.87830567,155.6,155.59,129.24]
[1749498115499,72.0788198,155.6,155.55,100.08]
[1749498115710,12.69321954,155.57,155.56,39.34]
[1749498116071,17.45157046,155.57,155.56,39.34]
[1749498116274,12.69321954,155.57,155.56,39.34]
[1749498116475,4.75835092,155.58,155.56,39.34]
[1749498116700,4.75835092,155.57,155.56,39.34]
[1749498117774,23.879545,155.57,155.56,39.34]
[1749498117975,19.12119408,155.57,155.56,39.34]
[1749498118391,23.879545,155.57,155.56,39.34]
[1749498118599,19.12119408,155.57,155.56,39.34]
[1749498118979,23.879545,155.57,155.56,39.34]
[1749498119198,19.12119408,155.57,155.56,39.34]
[1749498119581,23.879545,155.57,155.56,39.34]
[1749498119802,19.12119408,155.57,155.56,39.34]
[1749498120176,23.879545,155.57,155.56,39.34]
[1749498120377,19.12119408,155.57,155.56,39.34]
[1749498120784,23.879545,155.57,155.56,39.34]